bitfinex-derivatives/quotes_ETHF0:USTF0_20250314
["timestamp","ask_amount","ask_price","bid_price","bid_amount"]
[1741987087618,1.04068,1921.8,1921.7,1.04067]
[1741987087811,1.04065,1921.9,1921.8,1.04065]
[1741987088718,4.25618849,1922.0,1921.9,1.04061]
[1741987089022,1.04838849,1922.0,1921.9,5.85011]
[1741987089223,0.00779849,1922.0,1921.9,5.85011]
[1741987090421,0.00779849,1922.0,1921.9,9.05791]
[1741987090719,1.04031,1922.5,1922.4,1.04034]
[1741987090926,1.04031,1922.5,1922.3,4.44035]
[1741987090927,1.04034,1922.4,1922.3,4.44035]
[1741987091128,1.04034,1922.4,1922.3,3.4]
[1741987091519,1.04034,1922.4,1922.3,4.8095]
[1741987091719,1.04810849,1922.5,1922.4,1.04034]
[1741987091920,4.25590849,1922.5,1922.4,1.3977]
[1741987092120,1.04810849,1922.5,1922.4,1.3977]
[1741987092428,2.43460849,1922.5,1922.4,1.3977]
[1741987092628,5.64240849,1922.5,1922.4,1.3977]
[1741987094325,2.43460849,1922.5,1922.4,1.3977]
[1741987094517,5.64240849,1922.5,1922.4,1.3977]
[1741987095431,1.04039,1922.3,1922.2,0.00779849]
[1741987095731,1.04039,1922.3,1922.2,3.40779849]
[1741987096122,1.74049,1922.3,1922.2,3.40779849]
[1741987096323,1.74049,1922.3,1922.2,4.44824849]
[1741987097026,1.04812849,1922.5,1922.4,1.04034]
[1741987097431,1.04039,1922.3,1922.2,0.00779849]
[1741987097739,1.04039,1922.3,1921.7,3.2078]
[1741987097740,1.04061,1921.9,1921.8,3.399]
[1741987097931,1.04061,1921.9,1921.8,4.8419]
[1741987098323,2.37801,1921.9,1921.8,4.8419]
[1741987101134,3.08451,1921.9,1921.8,4.8419]
[1741987101937,3.08451,1921.9,1921.8,1.4429]
[1741987107939,1.74711,1921.9,1921.8,1.4429]
[1741987108138,1.74711,1921.9,1921.8,2.1325]
[1741987108939,3.07441,1921.9,1921.8,2.1325]
[1741987110639,3.07441,1921.9,1921.8,1.4429]
[1741987111343,1.04061,1921.9,1921.8,2.48357]
[1741987111544,1.04061,1921.9,1921.8,1.4429]
[1741987111747,2.44721,1921.9,1921.8,1.4429]
[1741987113149,2.44721,1921.9,1921.8,2.48357]
[1741987113338,1.04061,1921.9,1921.8,1.4429]
[1741987114145,1.04061,1921.9,1921.8,2.48357]
[1741987114450,1.04061,1921.9,1921.8,1.4429]
[1741987115847,0.6714,1922.1,1921.8,1.4429]
[1741987116049,1.0406,1922.0,1921.9,0.6623]
[1741987116349,1.0406,1922.0,1921.9,4.0613]
[1741987116553,1.71195,1922.1,1921.9,5.10188]
[1741987116750,1.71195,1922.1,1922.0,1.3713]
[1741987116951,5.228,1922.2,1922.0,1.3713]
[1741987117139,1.0405,1922.1,1922.0,2.0457]
[1741987117548,2.3843,1922.1,1922.0,2.0457]
[1741987117750,2.3843,1922.1,1922.0,1.3713]
[1741987120462,1.3438,1922.1,1921.8,1.04064]
[1741987120656,1.04061,1921.9,1921.8,1.04064]
[1741987120850,3.1026,1922.0,1921.8,1.04064]
[1741987121158,3.1026,1922.0,1921.8,1.04062]
[1741987121554,1.04061,1921.9,1921.8,1.04062]
[1741987122964,1.04061,1921.9,1921.8,2.38212]
[1741987123354,1.04061,1921.9,1921.8,1.3415]
[1741987123553,2.40861,1921.9,1921.8,1.3415]
[1741987124252,1.04067,1921.8,1921.7,0.00779849]
[1741987124561,1.04067,1921.8,1921.4,1.3415]
[1741987124562,1.04083,1921.5,1921.4,1.3415]
[1741987125264,4.24863,1921.5,1921.4,1.3415]
[1741987125461,1.04083,1921.5,1921.4,1.3415]
[1741987125962,4.24863,1921.5,1921.4,1.3415]
[1741987126157,1.04083,1921.5,1921.4,1.3415]
[1741987127657,1.04083,1921.5,1921.4,2.38234]
[1741987127863,1.04083,1921.5,1921.4,2.0042]
[1741987128864,1.04083,1921.5,1921.4,3.04508]
[1741987133466,1.04083,1921.5,1921.4,2.0042]
[1741987135461,1.04083,1921.5,1921.4,3.04508]
[1741987135863,1.04083,1921.5,1921.4,2.0042]
[1741987136261,1.04083,1921.5,1921.4,3.04508]
[1741987136670,1.04083,1921.5,1921.4,3.04504]
[1741987136870,1.04083,1921.5,1921.4,2.0042]
[1741987137072,1.04083,1921.5,1921.4,3.04508]
[1741987140179,1.04083,1921.5,1921.4,2.0042]
[1741987140365,1.04083,1921.5,1921.4,3.04508]
[1741987140565,1.04083,1921.5,1921.4,2.0042]
[1741987141873,1.04083,1921.5,1921.4,1.3415]
[1741987142073,4.24863,1921.5,1921.4,1.3415]
[1741987144865,1.04083,1921.5,1921.4,1.3415]
[1741987145579,4.24863,1921.5,1921.4,1.3415]
[1741987149979,1.04083,1921.5,1921.4,1.3415]
[1741987150678,1.04083,1921.5,1921.4,2.38238]
[1741987151980,1.04083,1921.5,1921.4,1.3415]
[1741987153079,1.04083,1921.5,1921.4,2.38238]
[1741987153675,1.04079,1921.6,1921.5,1.04083]
[1741987153876,1.04079,1921.6,1921.5,3.73113]
[1741987155084,1.04079,1921.6,1921.5,2.6903]
[1741987155275,1.04079,1921.6,1921.5,1.3405]
[1741987155584,4.24859,1921.6,1921.5,1.3405]
[1741987155878,6.34639,1921.6,1921.5,1.3405]
[1741987156883,1.04088,1921.4,1921.3,0.00779849]
[1741987157075,4.24868,1921.4,1921.3,0.00779849]
[1741987157476,6.30698,1921.4,1921.3,0.00779849]
[1741987159785,7.20520899,1921.4,1921.3,0.00779849]
[1741987161279,6.30698,1921.4,1921.3,0.00779849]
[1741987161584,3.09918,1921.4,1921.3,1.39919849]
[1741987162586,6.30698,1921.4,1921.3,1.39919849]
[1741987162783,1.71768,1921.4,1921.3,1.39919849]
[1741987162983,1.04088,1921.4,1921.3,2.44013849]
[1741987163386,8.37027,1921.5,1921.4,1.04088]
[1741987163592,7.01487,1921.5,1921.4,3.13838]
[1741987163887,7.01487,1921.5,1921.4,3.84458]
[1741987165490,1.04087,1921.5,1921.4,3.84458]
[1741987165690,1.04087,1921.5,1921.4,2.8037]
[1741987165991,2.39157,1921.5,1921.4,2.8037]
[1741987168885,2.39157,1921.5,1921.4,3.84458]
[1741987169086,2.39157,1921.5,1921.4,2.8037]
[1741987169386,1.04087,1921.5,1921.4,3.84458]
[1741987170092,1.04082,1921.6,1921.5,1.04083]
[1741987170292,1.04082,1921.6,1921.5,2.46363]
[1741987170894,1.04082,1921.6,1921.5,1.4228]
[1741987171391,1.04082,1921.6,1921.5,2.46363]
[1741987171789,1.04082,1921.6,1921.5,1.4228]
[1741987171990,1.04082,1921.6,1921.5,2.46363]
[1741987175094,1.04082,1921.6,1921.5,1.4228]
[1741987175693,2.40362,1921.6,1921.5,1.4228]
[1741987176996,2.40362,1921.6,1921.5,2.46363]
[1741987177198,1.04082,1921.6,1921.5,2.46363]
[1741987179498,1.04076,1921.7,1921.6,1.04073]
[1741987179694,1.04076,1921.7,1921.6,2.43433]
[1741987180902,1.04076,1921.7,1921.6,2.43437]
[1741987181201,2.42126,1921.7,1921.6,1.3936]
[1741987181502,2.42126,1921.7,1921.6,2.43437]
[1741987181697,2.42126,1921.7,1921.6,1.3936]
[1741987182101,5.62906,1921.7,1921.6,1.3936]
[1741987183000,2.42126,1921.7,1921.6,1.3936]
[1741987183696,5.62906,1921.7,1921.6,1.3936]
[1741987185104,2.42126,1921.7,1921.6,1.3936]
[1741987185304,5.62906,1921.7,1921.6,1.3936]
[1741987191806,5.72679763,1921.7,1921.6,1.3936]
[1741987194802,1.04088,1921.4,1921.3,3.40579849]
[1741987195810,1.13861763,1921.4,1921.3,3.40579849]
[1741987196109,2.45931763,1921.4,1921.3,4.77239849]
[1741987197706,2.45931763,1921.4,1921.2,1.3386]
[1741987197707,1.04135,1920.6,1920.5,3.2078]
[1741987197908,0.09773763,1920.6,1920.5,4.91077]
[1741987198207,1.13905763,1920.6,1920.5,4.91077]
[1741987198410,1.13905763,1920.6,1920.5,1.70297]
[1741987198611,1.13905763,1920.6,1920.5,5.10097]
[1741987198804,0.09773763,1920.6,1920.5,5.10097]
[1741987199412,0.09773763,1920.6,1920.5,6.43727]
[1741987199709,1.13905763,1920.6,1920.5,6.43727]
[1741987200109,1.13905763,1920.6,1920.5,5.3959]
[1741987200513,2.56415763,1920.6,1920.5,5.3959]
[1741987200811,1.13905763,1920.6,1920.5,5.3959]
[1741987201312,1.13905763,1920.6,1920.5,6.43727]
[1741987202013,1.13905763,1920.6,1920.5,5.3959]
[1741987202214,1.13905763,1920.6,1920.5,1.9979]
[1741987202410,1.13905763,1920.6,1920.5,5.3959]
[1741987202708,1.83245763,1920.6,1920.5,5.3959]
[1741987202912,3.27385763,1920.6,1920.5,5.3959]
[1741987203115,3.27385763,1920.6,1920.5,6.43727]
[1741987203614,3.27385763,1920.6,1920.5,5.3959]
[1741987204005,3.27385763,1920.6,1920.5,6.43727]
[1741987204206,1.83245763,1920.6,1920.5,6.43727]
[1741987205013,1.83245763,1920.6,1920.5,5.3959]
[1741987205313,1.83245763,1920.6,1920.5,4.7343]
[1741987205314,3.28765763,1920.6,1920.5,4.7343]
[1741987206507,3.28765763,1920.6,1920.5,1.3363]
[1741987206508,6.49545763,1920.6,1920.5,1.3363]
[1741987211409,3.28765763,1920.6,1920.5,1.3363]
[1741987212016,6.49545763,1920.6,1920.5,1.3363]
[1741987213116,1.04137,1920.5,1920.4,0.00779849]
[1741987213317,2.42937,1920.5,1920.4,0.00779849]
[1741987214212,2.52710763,1920.5,1920.4,0.00779849]
[1741987220922,1.13910763,1920.5,1920.4,0.00779849]
[1741987221218,1.13910763,1920.5,1920.4,0.68979849]
[1741987221525,1.13910763,1920.5,1920.4,2.01989849]
[1741987223216,2.56460763,1920.5,1920.4,2.01989849]
[1741987227016,1.13910763,1920.5,1920.4,3.06131849]
[1741987234823,1.13910763,1920.5,1920.4,3.77941849]
[1741987237734,0.09773763,1920.5,1920.4,3.77941849]
[1741987241635,8.49e-06,1920.7,1920.4,3.77941849]
[1741987241827,3.2078,1922.0,1920.5,15.022]
[1741987242134,3.2078,1922.0,1920.9,5.81063]
[1741987242135,1.04097,1921.3,1920.9,5.81063]
[1741987242335,1.04097,1921.3,1921.2,1.04099]
[1741987242630,2.8029,1921.5,1921.0,5.528]
[1741987242830,1.04097,1921.3,1921.2,1.04098]
[1741987243733,1.04097,1921.3,1921.1,5.66701]
[1741987243928,1.04097,1921.3,1921.2,1.4182]
[1741987245935,1.04115,1920.9,1920.8,3.9162]
[1741987246135,1.04114,1921.0,1920.8,7.3132]
[1741987246337,1.04114,1921.0,1920.9,1.3614]
[1741987250340,0.6972,1921.2,1920.9,1.3614]
[1741987250643,1.0411,1921.0,1920.9,1.3614]
[1741987255748,1.04115,1920.9,1920.8,4.43821]
[1741987255950,1.69955,1920.9,1920.8,4.43821]
[1741987258949,1.69955,1920.9,1920.8,3.397]
[1741987259855,1.69955,1920.9,1920.8,4.43821]
[1741987260045,3.04805,1920.9,1920.8,4.43821]
[1741987260858,3.04805,1920.9,1920.8,3.397]
[1741987261161,3.04805,1920.9,1920.8,4.43821]
[1741987261453,1.04121,1920.8,1920.7,1.04121]
[1741987261757,1.04126,1920.7,1920.6,5.64016]
[1741987262057,1.70966,1920.7,1920.6,9.03716]
[1741987262950,2.38973,1920.8,1920.7,1.04126]
[1741987264357,1.3268,1920.9,1920.6,7.9959]
[1741987264559,1.04126,1920.8,1920.7,1.04123]
[1741987264751,2.41736,1920.8,1920.7,1.04123]
[1741987266464,1.04126,1920.7,1920.6,4.93179]
[1741987266656,2.47766,1920.7,1920.6,1.72402]
[1741987266957,1.04137,1920.5,1920.4,3.21559849]
[1741987267264,1.04137,1920.5,1920.4,0.00779849]
[1741987267657,5.68557,1920.5,1920.4,0.00779849]
[1741987267858,2.47777,1920.5,1920.4,0.00779849]
[1741987268363,5.68557,1920.5,1920.4,0.00779849]
[1741987268662,2.47777,1920.5,1920.4,0.00779849]
[1741987269154,5.68557,1920.5,1920.4,0.00779849]
[1741987270759,2.47777,1920.5,1920.4,0.00779849]
[1741987270962,5.68557,1920.5,1920.4,0.00779849]
[1741987272661,8.18557,1920.5,1920.4,8.49e-06]
[1741987273864,14.15957,1920.5,1920.4,8.49e-06]
[1741987274357,15.05725969,1920.5,1920.4,8.49e-06]
[1741987274762,15.70383637,1920.5,1920.4,8.49e-06]
[1741987274962,16.69281734,1920.5,1920.4,8.49e-06]
[1741987275168,16.04624066,1920.5,1920.4,8.49e-06]
[1741987276073,16.69237941,1920.5,1920.4,8.49e-06]
[1741987276565,16.77866724,1920.5,1920.4,8.49e-06]
[1741987279070,16.13252849,1920.5,1920.4,8.49e-06]
[1741987282069,16.04624066,1920.5,1920.4,8.49e-06]
[1741987282274,16.13252327,1920.5,1920.4,8.49e-06]
[1741987283276,1.04175,1919.8,1919.7,1.4461]
[1741987283478,4.24955,1919.8,1919.7,1.4461]
[1741987285674,1.0418,1919.7,1919.6,0.00779849]
[1741987285877,1.04197,1919.4,1919.3,28.878]
[1741987289184,4.24977,1919.4,1919.3,2.6681]
[1741987289687,1.04197,1919.4,1919.3,2.6681]
[1741987290169,4.24977,1919.4,1919.3,1.3217]
[1741987294078,5.81285,1919.4,1919.0,1.3464]
[1741987294274,1.04213,1919.1,1919.0,1.3464]
[1741987296882,9.98207,1919.6,1919.1,1.04213]
[1741987297084,1.04208,1919.2,1919.1,2.44213]
[1741987297678,1.04208,1919.2,1919.1,1.4]
[1741987297882,11.78646,1919.6,1919.3,1.04199]
[1741987298082,1.04201,1919.4,1919.3,1.04199]
[1741987298385,1.04201,1919.4,1919.1,3.2078]
[1741987298386,1.04195,1919.5,1919.4,1.04193]
[1741987298579,1.04198,1919.4,1919.3,1.04197]
[1741987299881,1.04202,1919.3,1919.2,4.44005]
[1741987300079,1.04201,1919.4,1919.3,1.042]
[1741987306293,1.04189,1919.6,1919.5,1.04191]
[1741987306489,1.04195,1919.5,1919.4,1.04192]
[1741987306895,1.042,1919.4,1919.3,1.04198]
[1741987308288,1.042,1919.4,1919.3,1.70318]
[1741987309792,1.042,1919.4,1919.3,4.91098]
[1741987310190,1.04194,1919.5,1919.4,1.04191]
[1741987310390,1.04194,1919.5,1919.4,2.38501]
[1741987317394,0.00779849,1919.9,1919.8,1.04175]
[1741987317594,0.00779849,1919.9,1919.8,7.64755]
[1741987317789,0.00779849,1919.9,1919.8,8.96445]
[1741987319097,11.78514,1920.6,1919.8,11.46445]
[1741987319299,1.04151,1920.3,1920.2,1.04151]
[1741987319499,1.04151,1920.3,1920.2,4.43851]
[1741987319997,1.04151,1920.3,1920.2,5.75541]
[1741987320699,1.34199849,1920.4,1920.2,4.7139]
[1741987320897,1.34199849,1920.4,1920.3,2.49178]
[1741987322003,2.38341849,1920.4,1920.3,2.49178]
[1741987322703,1.34199849,1920.4,1920.3,2.49178]
[1741987323506,0.00779849,1920.4,1920.3,2.49178]
[1741987323703,1.04921849,1920.4,1920.3,2.49178]
[1741987324005,0.00779849,1920.4,1920.3,2.49178]
[1741987324401,1.42149849,1920.4,1920.3,2.49178]
[1741987325406,2.46291849,1920.4,1920.3,2.49178]
[1741987325599,1.42149849,1920.4,1920.3,2.49178]
[1741987327104,2.46291849,1920.4,1920.3,2.49178]
[1741987328602,1.42149849,1920.4,1920.3,2.49178]
[1741987335311,0.00779849,1920.4,1920.3,2.49178]
[1741987337817,0.00779849,1920.4,1920.3,4.99178]
[1741987338117,0.00779849,1920.4,1920.3,10.98978]
[1741987339613,0.00779849,1920.4,1920.3,8.48978]
[1741987344115,0.00779849,1920.4,1920.3,2.49178]
[1741987344716,1.38299849,1920.4,1920.3,2.49178]
[1741987345026,1.38299849,1920.4,1920.3,5.88678]
[1741987350424,1.38299849,1920.4,1920.3,1.04148]
[1741987350629,4.59079849,1920.4,1920.1,0.00779849]
[1741987350831,1.04153,1920.2,1920.1,1.04938849]
[1741987351026,2.7791,1920.3,1920.1,0.00779849]
[1741987351226,1.04153,1920.2,1920.1,1.04935849]
[1741987351528,2.41773,1920.2,1920.1,1.04935849]
[1741987351923,2.41773,1920.2,1920.1,0.00779849]
[1741987352624,1.04164,1920.0,1919.9,3.2078]
[1741987352830,1.04164,1920.0,1919.9,6.6018]
[1741987353226,1.70854,1920.0,1919.9,6.6018]
[1741987353425,1.70854,1920.0,1919.7,3.2078]
[1741987353627,1.04175,1919.8,1919.7,4.24958]
[1741987353931,1.04175,1919.8,1919.7,3.395]
[1741987355427,2.60487,1919.5,1919.0,4.24996]
[1741987355729,1.04213,1919.1,1919.0,1.04216]
[1741987355929,1.04213,1919.1,1919.0,4.43616]
[1741987356327,1.04213,1919.1,1919.0,3.394]
[1741987356532,2.36893,1919.1,1919.0,4.43618]
[1741987356737,2.36893,1919.1,1919.0,1.04218]
[1741987356930,2.36893,1919.1,1919.0,3.395]
[1741987358229,1.3268,1919.1,1918.8,5.59097]
[1741987358529,3.79742,1919.0,1918.9,3.395]
[1741987359629,1.04224,1918.9,1918.8,4.25007]
[1741987359828,2.41304,1918.9,1918.8,7.64507]
[1741987360030,1.3708,1918.9,1918.8,7.64507]
[1741987361037,2.41304,1918.9,1918.8,7.64507]
[1741987361633,1.3708,1918.9,1918.8,7.64507]
[1741987362332,2.41304,1918.9,1918.8,4.43727]
[1741987363028,2.41304,1918.9,1918.8,4.43827]
[1741987365234,2.41304,1918.9,1918.8,5.83107]
[1741987365627,1.3708,1918.9,1918.8,5.83107]
[1741987372735,0.00779849,1919.2,1919.1,1.04213]
[1741987372937,1.36519849,1919.2,1919.1,1.04213]
[1741987373137,1.36519849,1919.2,1919.1,5.87523]
[1741987374830,0.00779849,1919.2,1919.1,5.87523]
[1741987380445,2.46927849,1919.2,1919.1,4.8331]
[1741987380845,2.46927849,1919.2,1919.1,5.87523]
[1741987381552,2.46927849,1919.2,1919.1,3.396]
[1741987381752,2.46927849,1919.2,1919.1,5.76053]
[1741987382445,2.46927849,1919.2,1919.1,4.7184]
[1741987382647,2.46927849,1919.2,1919.1,5.76053]
[1741987383352,1.42719849,1919.2,1919.1,5.76053]
[1741987383551,2.46927849,1919.2,1919.1,5.76053]
[1741987383953,1.42719849,1919.2,1919.1,5.76053]
[1741987389048,0.00779849,1919.2,1919.1,5.76053]
[1741987393361,1.38379849,1919.2,1919.1,5.76053]
[1741987395158,1.38379849,1919.2,1919.1,8.96833]
[1741987395662,1.38379849,1919.2,1919.1,5.76053]
[1741987395862,1.38379849,1919.2,1919.1,8.96833]
[1741987398156,1.38379849,1919.2,1919.1,8.96733]
[1741987398559,2.42587849,1919.2,1919.1,8.96733]
[1741987398955,1.38379849,1919.2,1919.1,8.96733]
[1741987399357,2.42587849,1919.2,1919.1,8.96733]
[1741987399757,1.38379849,1919.2,1919.1,8.96733]
[1741987401561,2.42587849,1919.2,1919.1,8.96733]
[1741987401764,1.38379849,1919.2,1919.1,8.96733]
[1741987412468,0.00779849,1919.2,1919.1,8.96733]
[1741987415974,0.71009849,1919.2,1919.1,8.96733]
[1741987419771,2.09459849,1919.2,1919.1,8.96733]
[1741987423681,2.09459849,1919.2,1919.1,7.64393]
[1741987425374,1.39229849,1919.2,1919.1,7.64393]
[1741987425583,0.00779849,1919.2,1919.1,9.71343]
[1741987432984,0.00779849,1919.2,1919.1,5.65563]
[1741987433287,0.00779849,1919.2,1919.1,9.04963]
[1741987433488,0.69629849,1919.2,1919.1,9.04963]
[1741987433686,1.73837849,1919.2,1919.1,3.2078]
[1741987433878,1.73837849,1919.2,1918.9,5.998]
[1741987433879,0.69629849,1919.2,1919.0,1.04214]
[1741987434084,1.3243,1919.1,1919.0,1.04214]
[1741987434687,1.3243,1919.1,1919.0,2.44464]
[1741987436186,0.00779849,1919.2,1919.1,1.04213]
[1741987436384,0.7295,1919.4,1919.3,1.04202]
[1741987436885,1.417,1919.4,1919.3,1.04202]
[1741987437591,2.8432,1919.4,1919.3,1.04202]
[1741987442695,2.8432,1919.4,1919.2,0.00779849]
[1741987442996,2.38572,1919.3,1919.2,1.04987849]
[1741987443203,1.3437,1919.3,1919.2,1.04987849]
[1741987443891,2.38572,1919.3,1919.2,1.04987849]
[1741987444999,2.38572,1919.3,1919.2,0.00779849]
[1741987445199,2.38572,1919.3,1919.2,1.04987849]
[1741987445502,1.3437,1919.3,1919.2,1.04987849]
[1741987445696,2.38572,1919.3,1919.2,1.04987849]
[1741987447000,2.38572,1919.3,1919.2,0.00779849]
[1741987449196,5.59352,1919.3,1919.2,0.00779849]
[1741987452101,4.5515,1919.3,1919.2,1.04987849]
[1741987452603,5.59352,1919.3,1919.2,0.00779849]
[1741987456115,2.38572,1919.3,1919.2,1.04987849]
[1741987456306,2.38572,1919.3,1919.2,2.36617849]
[1741987456506,2.38572,1919.3,1919.2,1.32409849]
[1741987459009,2.38572,1919.3,1919.2,2.36617849]
[1741987459211,2.38572,1919.3,1919.2,1.32409849]
[1741987459411,2.38572,1919.3,1919.2,2.36617849]
[1741987460404,2.38572,1919.3,1919.2,1.32409849]
[1741987460811,2.38572,1919.3,1919.2,2.36617849]
[1741987463921,2.38572,1919.3,1919.2,1.32409849]
[1741987465121,2.38572,1919.3,1919.2,2.36617849]
[1741987465720,1.04202,1919.3,1919.2,1.32409849]
[1741987465927,2.43011,1919.4,1919.2,3.05467849]
[1741987466225,1.3881,1919.3,1919.2,1.73837849]
[1741987466624,1.3881,1919.3,1919.2,5.13137849]
[1741987476230,0.00779849,1919.5,1919.4,1.04197]
[1741987476432,5.974,1920.0,1919.3,5.8128]
[1741987476630,1.3249,1919.5,1919.4,1.04197]
[1741987476822,1.3249,1919.5,1919.4,8.30777]
[1741987477235,0.89728486,1920.1,1920.0,1.04164]
[1741987477424,5.974,1920.5,1919.9,4.43468]
[1741987477425,1.415,1920.4,1919.9,4.43468]
[1741987477632,1.04164,1920.1,1920.0,4.058]
[1741987477939,0.00779849,1920.2,1920.1,1.04159]
[1741987478229,5.81045,1921.1,1920.2,2.60384]
[1741987478433,0.98807643,1920.6,1920.5,1.04132]
[1741987478834,1.4584,1920.6,1920.5,1.04132]
[1741987480128,1.4584,1920.6,1920.5,2.44742]
[1741987482437,0.72859849,1920.7,1920.6,1.04132]
[1741987482438,0.00779849,1920.7,1920.6,1.04132]
[1741987482627,0.00779849,1920.7,1920.6,4.43332]
[1741987483433,0.00779849,1920.7,1920.6,5.10952]
[1741987485333,0.00779849,1920.7,1920.6,6.56822]
[1741987485845,0.6827,1921.0,1920.9,1.04115]
[1741987486033,1.3779,1921.0,1920.9,4.43215]
[1741987486633,1.3779,1921.0,1920.9,7.63995]
[1741987490446,2.0744,1921.0,1920.9,7.63995]
[1741987498459,2.0744,1921.0,1920.9,4.43015]
[1741987499460,2.60289,1920.9,1920.6,5.998]
[1741987499760,1.04126,1920.7,1920.6,9.387]
[1741987500066,1.04126,1920.7,1920.6,5.998]
[1741987500258,1.04126,1920.7,1920.6,9.387]
[1741987500459,1.04137,1920.5,1920.4,0.00779849]
[1741987500666,5.81123,1920.5,1920.0,3.2078]
[1741987500866,5.8115,1920.3,1919.9,3.389]
[1741987501071,1.04164,1920.0,1919.9,4.43068]
[1741987501261,1.04162,1920.1,1920.0,1.04162]
[1741987501467,2.49243,1920.2,1920.1,1.04159]
[1741987501666,1.04153,1920.2,1920.1,1.04159]
[1741987502265,1.04149,1920.3,1920.0,4.59909849]
[1741987502564,0.6607,1920.4,1920.1,1.3835]
[1741987502757,0.6607,1920.4,1920.3,1.04148]
[1741987502964,3.2078,1920.9,1920.3,2.6037]
[1741987503163,1.04127,1920.7,1920.6,1.04129]
[1741987503563,1.04132,1920.6,1920.5,4.43633]
[1741987503769,1.73222,1920.6,1920.5,5.76823]
[1741987503965,0.6909,1920.6,1920.5,8.97603]
[1741987504277,0.6933,1920.8,1920.7,1.04126]
[1741987504463,1.3702,1920.8,1920.7,1.04126]
[1741987506174,2.41141,1920.8,1920.7,1.04126]
[1741987507774,1.3702,1920.8,1920.7,4.24906]
[1741987507977,0.6769,1920.8,1920.7,4.24906]
[1741987508775,1.04114,1921.0,1920.8,1.04121]
[1741987508979,1.75094,1921.0,1920.8,2.48281]
[1741987509683,1.04115,1920.9,1920.8,2.48281]
[1741987510080,1.75093,1921.0,1920.9,1.04115]
[1741987510280,1.75093,1921.0,1920.8,1.4416]
[1741987510480,1.04115,1920.9,1920.8,2.48277]
[1741987510986,1.04137,1920.5,1920.4,1.0414]
[1741987511176,1.04137,1920.5,1920.4,4.4384]
[1741987511482,2.60302,1920.8,1920.3,2.45264]
[1741987511483,1.04142,1920.4,1920.3,2.45264]
[1741987511684,1.04142,1920.4,1920.3,5.84964]
[1741987512380,1.04142,1920.4,1920.3,3.397]
[1741987513884,1.04153,1920.2,1920.1,6.25824]
[1741987514092,1.04153,1920.2,1920.1,9.65724]
[1741987514983,1.04153,1920.2,1920.1,8.6157]
[1741987515183,1.04153,1920.2,1920.1,5.4079]
[1741987515377,1.04153,1920.2,1920.1,6.44949]
[1741987515579,1.04159,1920.1,1920.0,1.04939849]
[1741987515883,1.04159,1920.1,1920.0,5.79069849]
[1741987517483,1.04159,1920.1,1920.0,5.79369849]
[1741987518589,1.04159,1920.1,1920.0,0.00779849]
[1741987519292,4.24939,1920.1,1920.0,0.00779849]
[1741987520281,5.68409,1920.1,1920.0,0.00779849]
[1741987520682,5.68409,1920.1,1919.7,28.871]
[1741987520683,1.04175,1919.8,1919.7,28.871]
[1741987520884,1.0418,1919.7,1919.6,3.402]
[1741987521286,2.47646,1919.8,1919.6,1.04181]
[1741987521491,2.48382,1919.7,1919.5,1.4183]
[1741987521791,1.04186,1919.6,1919.5,1.4183]
[1741987521988,2.48386,1919.6,1919.5,1.4183]
[1741987522188,1.04191,1919.5,1919.4,3.41479849]
[1741987522384,2.48391,1919.5,1919.4,4.83309849]
[1741987522586,2.48391,1919.5,1919.4,5.87506849]
[1741987523091,1.442,1919.5,1919.4,5.87506849]
[1741987523278,2.48391,1919.5,1919.4,4.83309849]
[1741987523684,1.442,1919.5,1919.4,5.87506849]
[1741987523884,1.0418,1919.7,1919.5,1.04189]
[1741987524084,2.4838,1919.7,1919.6,1.4183]
[1741987524987,1.442,1919.7,1919.6,1.4183]
[1741987525791,2.4838,1919.7,1919.6,2.46016]
[1741987526288,2.4838,1919.7,1919.6,1.4183]
[1741987531400,1.04191,1919.5,1919.4,5.85002849]
[1741987532101,1.04191,1919.5,1919.4,4.80809849]
[1741987532900,2.42531,1919.5,1919.4,4.80809849]
[1741987533101,2.42531,1919.5,1919.4,0.00779849]
[1741987543310,5.63311,1919.5,1919.4,0.00779849]
[1741987546406,5.63311,1919.5,1918.6,1.3482]
[1741987546407,1.04235,1918.7,1918.6,1.3482]
[1741987547406,2.37965,1918.7,1918.6,1.3482]
[1741987549211,1.0424,1918.6,1918.5,0.00779849]
[1741987549406,6.405,1918.6,1918.5,0.00779849]
[1741987552304,5.3626,1918.6,1918.5,1.05025849]
[1741987552608,2.1548,1918.6,1918.5,1.05025849]
[1741987553208,3.1972,1918.6,1918.5,0.00779849]
[1741987553716,3.1972,1918.6,1918.5,1.41869849]
[1741987554115,3.1972,1918.6,1918.5,2.46115849]
[1741987555713,3.1972,1918.6,1918.5,1.41869849]
[1741987558410,6.405,1918.6,1918.5,1.41869849]
[1741987559215,3.1972,1918.6,1918.5,1.41869849]
[1741987560208,6.405,1918.6,1918.5,1.41869849]
[1741987560410,5.7101,1918.6,1918.5,1.41869849]
[1741987560614,2.5023,1918.6,1918.5,1.41869849]
[1741987561907,2.5023,1918.6,1918.5,2.46115849]
[1741987562512,2.5023,1918.6,1918.5,1.41869849]
[1741987563015,2.5023,1918.6,1918.5,2.46115849]
[1741987564219,2.5023,1918.6,1918.5,1.41869849]
[1741987565919,2.5023,1918.6,1918.5,2.46115849]
[1741987568620,2.5023,1918.6,1918.5,1.41869849]
[1741987570121,1.4599,1918.6,1918.5,2.46115849]
[1741987570320,2.5023,1918.6,1918.5,2.46115849]
[1741987571216,2.5023,1918.6,1918.5,1.41869849]
[1741987571417,2.5023,1918.6,1918.5,2.46115849]
[1741987575231,1.0424,1918.6,1918.5,2.46115849]
[1741987575431,3.2078,1919.1,1918.7,2.60587]
[1741987575633,3.49269645,1919.0,1918.9,1.04224]
[1741987576133,3.49269645,1919.0,1918.9,2.41044]
[1741987576430,2.50408,1919.0,1918.9,2.41044]